bitfinex/quotes_BTCUSD_20241010
["timestamp","ask_amount","ask_price","bid_price","bid_amount"]
[1728604152803,0.9181336,60251.0,60250.0,4.0434838]
[1728604153365,0.76900323,60251.0,60250.0,4.0434838]
[1728604154026,0.83786926,60251.0,60250.0,4.0434838]
[1728604154226,1.05344349,60251.0,60250.0,4.0434838]
[1728604154688,0.88566303,60251.0,60250.0,4.0434838]
[1728604155333,0.816797,60251.0,60250.0,4.0434838]
[1728604155778,0.715097,60251.0,60250.0,4.0434838]
[1728604157241,0.83998648,60251.0,60250.0,4.0434838]
[1728604157691,0.79217538,60251.0,60250.0,4.0434838]
[1728604158377,0.6442859,60251.0,60250.0,4.0434838]
[1728604158802,0.6443768,60251.0,60250.0,4.0434838]
[1728604159216,0.74843116,60251.0,60250.0,4.0434838]
[1728604159753,0.6443768,60251.0,60250.0,4.0434838]
[1728604159959,0.79358972,60251.0,60250.0,4.0434838]
[1728604160599,0.76558972,60251.0,60250.0,4.1345838]
[1728604160813,0.6303768,60251.0,60250.0,4.1345838]
[1728604161021,0.6443768,60251.0,60250.0,4.1345838]
[1728604161224,0.6303768,60251.0,60250.0,4.1345838]
[1728604163435,0.6443768,60251.0,60250.0,4.1355838]
[1728604163850,0.64436017,60251.0,60250.0,4.1355838]
[1728604165970,0.64436017,60251.0,60250.0,4.2108838]
[1728604166933,0.63036017,60251.0,60250.0,4.2098838]
[1728604167168,0.63189988,60251.0,60250.0,4.2098838]
[1728604167410,0.64589988,60251.0,60250.0,4.2108838]
[1728604167651,0.65989988,60251.0,60250.0,4.2108838]
[1728604167883,0.64589988,60251.0,60250.0,4.2098838]
[1728604168124,0.65889988,60251.0,60250.0,4.2108838]
[1728604168603,0.78321287,60251.0,60250.0,4.2108838]
[1728604168840,0.7583447,60251.0,60250.0,4.2108838]
[1728604169329,0.47531573,60251.0,60250.0,4.2108838]
[1728604169554,0.53435074,60251.0,60250.0,4.2108838]
[1728604169768,0.54988612,60251.0,60250.0,4.2108838]
[1728604172703,0.54987782,60251.0,60250.0,4.2108838]
[1728604173220,0.54987697,60251.0,60250.0,4.2108838]
[1728604175603,0.47530225,60251.0,60250.0,4.2108838]
[1728604180641,0.52498618,60251.0,60250.0,4.2108838]
[1728604180856,0.52498753,60251.0,60250.0,4.2108838]
[1728604182494,0.52498383,60251.0,60250.0,4.2108838]
[1728604184376,0.50945625,60251.0,60250.0,4.2108838]
[1728604184589,0.52499333,60251.0,60250.0,4.2108838]
[1728604192680,0.4753131,60251.0,60250.0,4.2108838]
[1728604194676,0.54984598,60251.0,60250.0,4.2108838]
[1728604194940,0.4753131,60251.0,60250.0,4.2108838]
[1728604195681,0.54984598,60251.0,60250.0,4.2108838]
[1728604196892,0.54987203,60251.0,60250.0,4.2108838]
[1728604198496,0.4753131,60251.0,60250.0,4.2108838]
[1728604198729,0.6588545,60251.0,60250.0,4.2108838]
[1728604199676,0.75826641,60251.0,60250.0,4.2108838]
[1728604200138,0.65826641,60251.0,60250.0,4.2108838]
[1728604200426,0.5588545,60251.0,60250.0,4.2108838]
[1728604200659,0.65826641,60251.0,60250.0,4.2108838]
[1728604200870,0.65840619,60251.0,60250.0,4.2108838]
[1728604201519,0.55896549,60251.0,60250.0,4.2108838]
[1728604202141,0.68335313,60251.0,60250.0,4.2108838]
[1728604202565,0.55896549,60251.0,60250.0,4.2108838]
[1728604203042,0.55896494,60251.0,60250.0,4.2108838]
[1728604203672,0.55896494,60251.0,60250.0,4.0444838]
[1728604204985,0.54338822,60251.0,60250.0,4.0444838]
[1728604205198,0.55896393,60251.0,60250.0,4.0444838]
[1728604206734,0.55918527,60251.0,60250.0,4.0444838]
[1728604208452,0.54360956,60251.0,60250.0,4.0444838]
[1728604208669,0.55918396,60251.0,60250.0,4.0444838]
[1728604209743,0.68407344,60251.0,60250.0,4.0444838]
[1728604211675,0.83347466,60251.0,60250.0,4.0444838]
[1728604212203,0.81790026,60251.0,60250.0,4.0444838]
[1728604212430,0.83347315,60251.0,60250.0,4.0444838]
[1728604213321,0.83366443,60251.0,60250.0,4.0444838]
[1728604216975,0.70877495,60251.0,60250.0,4.0444838]
[1728604219097,0.70877473,60251.0,60250.0,4.0444838]
[1728604221332,0.55928785,60251.0,60250.0,4.0444838]
[1728604222449,0.54371496,60251.0,60250.0,4.0444838]
[1728604222663,0.55928521,60251.0,60250.0,4.0444838]
[1728604223111,0.75133753,60251.0,60250.0,4.0444838]
[1728604223327,1.04423054,60251.0,60250.0,4.0444838]
[1728604223548,0.8760578,60251.0,60250.0,4.0444838]
[1728604225467,0.89161408,60251.0,60250.0,4.0444838]
[1728604225714,1.31139633,60251.0,60250.0,3.14913791]
[1728604225944,1.17093325,60251.0,60250.0,2.94965731]
[1728604226169,0.96147217,60251.0,60250.0,2.94965731]
[1728604226410,0.89960812,60251.0,60250.0,2.94965731]
[1728604226678,0.90060812,60251.0,60250.0,2.94865731]
[1728604227681,0.88660812,60251.0,60250.0,2.94865731]
[1728604227924,1.15038708,60251.0,60250.0,2.94865731]
[1728604228155,1.16438708,60251.0,60250.0,2.91074608]
[1728604228379,1.42093401,60251.0,60250.0,2.91074608]
[1728604229160,1.40537639,60251.0,60250.0,2.91074608]
[1728604229412,1.29754438,60251.0,60250.0,2.91074608]
[1728604229653,1.31306989,60251.0,60250.0,2.91074608]
[1728604230173,1.18818041,60251.0,60250.0,2.91074608]
[1728604230414,1.03906233,60251.0,60250.0,2.91074608]
[1728604232502,1.02153682,60251.0,60250.0,2.91074608]
[1728604232696,0.84716273,60251.0,60250.0,2.91074608]
[1728604232941,0.68571041,60251.0,60250.0,2.91074608]
[1728604233194,0.7868715,60251.0,60250.0,2.91074608]
[1728604233436,0.55982719,60251.0,60250.0,2.91074608]
[1728604233703,0.37629141,60251.0,60250.0,2.91074608]
[1728604233916,0.50118089,60251.0,60250.0,2.91074608]
[1728604234157,0.6844843,60251.0,60250.0,2.91074608]
[1728604234376,0.48718089,60251.0,60250.0,2.91074608]
[1728604234592,0.67048353,60251.0,60250.0,2.91074608]
[1728604234810,0.65959405,60251.0,60250.0,2.91074608]
[1728604235283,0.68259405,60251.0,60250.0,2.91074608]
[1728604235731,0.66859287,60251.0,60250.0,2.91074608]
[1728604235954,0.83656401,60251.0,60250.0,2.91074608]
[1728604236408,0.85056401,60251.0,60250.0,2.91074608]
[1728604236687,0.65459287,60251.0,60250.0,2.91074608]
[1728604236928,0.64559287,60251.0,60250.0,3.00404608]
[1728604237149,0.64559287,60251.0,60250.0,3.08064608]
[1728604237363,0.52277216,60251.0,60250.0,3.08064608]
[1728604237573,0.53677216,60251.0,60250.0,3.08064608]
[1728604238206,0.75889005,60251.0,60250.0,3.08064608]
[1728604238848,0.74489005,60251.0,60250.0,3.08064608]
[1728604239275,0.75889005,60251.0,60250.0,3.08064608]
[1728604239494,0.92366295,60251.0,60250.0,2.98734608]
[1728604239701,0.65958151,60251.0,60250.0,2.98734608]
[1728604242397,0.78447362,60251.0,60250.0,2.98734608]
[1728604245635,0.76895678,60251.0,60250.0,2.98734608]
[1728604245873,0.78447677,60251.0,60250.0,2.98734608]
[1728604246746,0.78453316,60251.0,60250.0,2.98734608]
[1728604247588,0.9368227,60251.0,60250.0,2.98734608]
[1728604248289,1.06099466,60251.0,60250.0,2.98734608]
[1728604249160,1.04547467,60251.0,60250.0,2.98734608]
[1728604249341,1.06099693,60251.0,60250.0,2.98734608]
[1728604251109,0.93682497,60251.0,60250.0,2.98734608]
[1728604251319,0.93685698,60251.0,60250.0,2.98734608]
[1728604251745,0.78456744,60251.0,60250.0,2.98734608]
[1728604252564,0.76904518,60251.0,60250.0,2.98734608]
[1728604252785,0.78457132,60251.0,60250.0,2.91074608]
[1728604253661,0.80757132,60251.0,60250.0,2.91074608]
[1728604253875,0.80957132,60251.0,60250.0,2.91074608]
[1728604254099,1.02678236,60251.0,60250.0,2.91074608]
[1728604254574,0.90189288,60251.0,60250.0,2.91074608]
[1728604255321,0.96689288,60251.0,60250.0,2.91074608]
[1728604255566,0.96689288,60251.0,60250.0,2.74477108]
[1728604255567,1.17588592,60251.0,60250.0,2.74477108]
[1728604255810,0.96689957,60251.0,60250.0,2.74477108]
[1728604256291,0.95289957,60251.0,60250.0,2.74477108]
[1728604256527,0.93889957,60251.0,60250.0,2.74477108]
[1728604256777,0.96689957,60251.0,60250.0,2.74477108]
[1728604256995,0.95578403,60251.0,60250.0,2.74477108]
[1728604257506,0.96978403,60251.0,60250.0,2.74477108]
[1728604257987,0.94025789,60251.0,60250.0,2.74477108]
[1728604258223,0.95425789,60251.0,60250.0,2.74477108]
[1728604259335,0.95225789,60251.0,60250.0,2.74477108]
[1728604260430,0.95425789,60251.0,60250.0,2.74477108]
[1728604261831,0.94179817,60251.0,60250.0,2.74477108]
[1728604262052,0.95422083,60251.0,60250.0,2.74477108]
[1728604262712,0.95622083,60251.0,60250.0,2.74477108]
[1728604264594,0.89122083,60251.0,60250.0,2.74477108]
[1728604265450,1.05888225,60251.0,60250.0,2.74477108]
[1728604265656,0.89122083,60251.0,60250.0,2.74477108]
[1728604265876,0.88922083,60251.0,60250.0,2.74477108]
[1728604266091,0.71977813,60251.0,60250.0,2.74477108]
[1728604266315,0.82166761,60251.0,60250.0,2.74477108]
[1728604266523,0.98935725,60251.0,60250.0,2.74477108]
[1728604266780,0.98935725,60251.0,60250.0,2.82207108]
[1728604266992,0.86449642,60251.0,60250.0,2.82207108]
[1728604267412,1.05693912,60251.0,60250.0,2.82207108]
[1728604267626,1.05695302,60251.0,60250.0,2.82207108]
[1728604267838,0.90477994,60251.0,60250.0,2.82207108]
[1728604268046,1.07248242,60251.0,60250.0,2.82207108]
[1728604268258,1.05695302,60251.0,60250.0,2.82207108]
[1728604268465,0.90478012,60251.0,60250.0,2.82207108]
[1728604268679,0.72137073,60251.0,60250.0,2.82207108]
[1728604268886,1.05698899,60251.0,60250.0,2.82207108]
[1728604269314,1.0569983,60251.0,60250.0,2.82207108]
[1728604269510,0.8875556,60251.0,60250.0,2.82207108]
[1728604269920,0.71983422,60251.0,60250.0,2.82207108]
[1728604270580,0.8217237,60251.0,60250.0,2.91757108]
[1728604270824,0.81883924,60251.0,60250.0,2.91757108]
[1728604271033,0.77106421,60251.0,60250.0,2.91757108]
[1728604271245,0.94050691,60251.0,60250.0,2.91757108]
[1728604271478,0.92650691,60251.0,60250.0,2.91757108]
[1728604271922,0.94203938,60251.0,60250.0,2.91757108]
[1728604272135,0.77259668,60251.0,60250.0,2.91757108]
[1728604272997,0.78659668,60251.0,60250.0,2.91757108]
[1728604273285,0.60316091,60251.0,60250.0,2.91757108]
[1728604273497,0.78660902,60251.0,60250.0,2.91757108]
[1728604275001,0.78661217,60251.0,60250.0,2.91757108]
[1728604279957,0.83441018,60251.0,60250.0,2.91757108]
[1728604280675,0.95605487,60251.0,60250.0,2.82207108]
[1728604280906,1.02685623,60251.0,60250.0,2.74477108]
[1728604282361,0.90196675,60251.0,60250.0,2.74477108]
[1728604282591,0.90206605,60251.0,60250.0,2.74477108]
[1728604283336,0.87406605,60251.0,60250.0,2.74477108]
[1728604283588,0.90206605,60251.0,60250.0,2.74477108]
[1728604283837,0.90206605,60251.0,60250.0,2.6928296]
[1728604284082,0.88653043,60251.0,60250.0,2.6928296]
[1728604285806,0.95353043,60251.0,60250.0,2.11835878]
[1728604286036,0.95353043,60251.0,60250.0,2.01877378]
[1728604286037,1.05491219,60251.0,60250.0,2.01877378]
[1728604286270,1.16272928,60251.0,60250.0,2.01877378]
[1728604286515,0.90372907,60251.0,60250.0,1.95238378]
[1728604286712,1.05291612,60251.0,60250.0,1.95238378]
[1728604287045,1.03891612,60251.0,60250.0,1.95238378]
[1728604287316,1.05491956,60251.0,60250.0,1.85279878]
[1728604287736,1.03891956,60251.0,60250.0,1.85279878]
[1728604287886,1.03891956,60251.0,60250.0,1.71996728]
[1728604288109,1.6071793,60251.0,60250.0,0.28511453]
[1728604288341,1.6071793,60251.0,60240.0,0.000817]
[1728604288342,0.149399,60241.0,60240.0,0.000817]
[1728604288541,1.12662105,60241.0,60240.0,0.000817]
[1728604288711,1.13902965,60241.0,60240.0,0.000817]
[1728604288913,1.01414017,60241.0,60240.0,0.000817]
[1728604290139,1.02814017,60241.0,60240.0,0.000817]
[1728604290342,1.03014017,60241.0,60240.0,0.000817]
[1728604290583,0.90325069,60241.0,60240.0,0.000817]
[1728604291174,0.91725069,60241.0,60240.0,0.000817]
[1728604291602,0.90325069,60241.0,60240.0,0.000817]
[1728604292029,0.91725069,60241.0,60240.0,0.000817]
[1728604292574,0.90325069,60241.0,60240.0,0.000817]
[1728604292820,0.91712287,60241.0,60240.0,0.000817]
[1728604293069,0.90312287,60241.0,60240.0,0.000817]
[1728604293580,0.91712287,60241.0,60240.0,0.000817]
[1728604295312,0.93231958,60241.0,60240.0,0.000817]
[1728604296719,0.93231958,60241.0,60235.0,0.001632]
[1728604296720,0.272412,60236.0,60235.0,0.001632]
[1728604296969,0.93387103,60236.0,60235.0,0.001632]
[1728604297934,0.94787103,60236.0,60235.0,0.001632]
[1728604298415,0.149424,60231.0,60229.0,0.0783]
[1728604298678,0.149424,60231.0,60186.0,0.05134211]
[1728604298679,0.75204237,60231.0,60223.0,0.0778]
[1728604298941,1.06076771,60231.0,60223.0,0.0778]
[1728604299187,0.98360979,60231.0,60223.0,0.0778]
[1728604299435,1.15118358,60231.0,60223.0,0.0778]
[1728604299686,1.16518358,60231.0,60223.0,0.0778]
[1728604299942,1.24033996,60231.0,60223.0,0.0778]
[1728604300189,1.28809035,60231.0,60223.0,0.0778]
[1728604300433,1.54676843,60231.0,60223.0,0.0778]
[1728604300675,1.54476843,60231.0,60223.0,0.0778]
[1728604300929,1.53276843,60231.0,60223.0,0.0778]
[1728604301163,1.54676843,60231.0,60223.0,0.0778]
[1728604301381,1.37922944,60231.0,60223.0,0.0778]
[1728604301605,1.36522944,60231.0,60223.0,0.0778]
[1728604301827,1.37922944,60231.0,60223.0,0.0778]
[1728604302286,1.39322944,60231.0,60223.0,0.0778]
[1728604303147,0.249442,60224.0,60223.0,0.074322]
[1728604303363,0.75006037,60224.0,60223.0,0.074322]
[1728604303576,0.7644453,60224.0,60223.0,0.074322]
[1728604304978,0.7924453,60224.0,60223.0,0.074322]
[1728604305214,0.66755582,60224.0,60223.0,0.074322]
[1728604305430,0.90162528,60224.0,60223.0,0.172422]
[1728604305651,0.80207399,60224.0,60223.0,0.172422]
[1728604305928,0.75565413,60224.0,60223.0,0.172422]
[1728604306150,0.54782379,60224.0,60223.0,0.172422]
[1728604308303,0.54782379,60224.0,60223.0,0.29731148]
[1728604308549,0.5230225,60224.0,60223.0,0.172422]
[1728604309236,0.45944171,60224.0,60223.0,0.172422]
[1728604309936,0.34713623,60224.0,60223.0,0.172422]
[1728604310435,0.33313623,60224.0,60223.0,0.172422]
[1728604310655,0.34713623,60224.0,60223.0,0.172422]
[1728604311405,0.36113623,60224.0,60223.0,0.172422]
[1728604311684,0.36113623,60224.0,60223.0,0.36322531]
[1728604311902,0.04238493,60224.0,60223.0,0.36822531]
[1728604312138,0.04238493,60224.0,60223.0,0.51848631]
[1728604312774,0.01601893,60224.0,60223.0,0.51848631]
[1728604313224,0.02401893,60224.0,60223.0,0.51848631]
[1728604313440,0.03801893,60224.0,60223.0,0.51848631]
[1728604313657,0.01601893,60224.0,60223.0,0.51848631]
[1728604313872,0.02601893,60224.0,60223.0,0.51848631]
[1728604314513,0.02201893,60224.0,60223.0,0.51848631]
[1728604315881,0.02601893,60224.0,60223.0,0.51848631]
[1728604316750,0.02001893,60224.0,60223.0,0.51848631]
[1728604317490,0.02601893,60224.0,60223.0,0.51848631]
[1728604321118,0.011634,60224.0,60223.0,0.51848631]
[1728604321724,0.02603771,60224.0,60223.0,0.51848631]
[1728604322127,0.011634,60224.0,60223.0,0.51848631]
[1728604322540,0.02603776,60224.0,60223.0,0.51848631]
[1728604322754,0.011634,60224.0,60223.0,0.51848631]
[1728604322991,0.02603799,60224.0,60223.0,0.51848631]
[1728604323211,0.011634,60224.0,60223.0,0.51848631]
[1728604323650,0.02603799,60224.0,60223.0,0.51848631]
[1728604326232,0.02603799,60224.0,60218.0,0.005]
[1728604326457,0.02603799,60224.0,60223.0,0.34024731]
[1728604327773,0.02203799,60224.0,60223.0,0.34024731]
[1728604328215,0.007634,60224.0,60223.0,0.34024731]
[1728604329055,0.011634,60224.0,60223.0,0.34024731]
[1728604329255,0.011634,60224.0,60223.0,0.52054731]
[1728604332550,0.011634,60224.0,60223.0,0.45491322]
[1728604333009,0.02603333,60224.0,60223.0,0.45491322]
[1728604333238,0.011634,60224.0,60223.0,0.45491322]
[1728604333453,0.02603793,60224.0,60223.0,0.45491322]
[1728604333715,0.011634,60224.0,60223.0,0.45491322]
[1728604333965,0.02603793,60224.0,60223.0,0.45491322]
[1728604336614,0.02603793,60224.0,60223.0,0.45572922]
[1728604337529,0.02634793,60224.0,60223.0,0.45572922]
[1728604341515,0.02664793,60224.0,60223.0,0.45572922]
[1728604344336,0.02664793,60224.0,60223.0,0.33056]
[1728604344567,0.02664793,60224.0,60223.0,0.45572922]
[1728604344791,0.02664793,60224.0,60223.0,0.58289844]
[1728604345210,0.012244,60224.0,60223.0,0.45772922]
[1728604345413,0.02780784,60224.0,60223.0,0.45572922]
[1728604345865,0.02780784,60224.0,60223.0,0.58789844]
[1728604346076,0.02380784,60224.0,60223.0,0.58789844]
[1728604346322,0.02380784,60224.0,60223.0,0.46272922]
[1728604346572,0.02409784,60224.0,60223.0,0.46372922]
[1728604346805,0.02409784,60224.0,60223.0,0.58889844]
[1728604347042,0.02409784,60224.0,60223.0,0.46272922]
[1728604347267,0.008534,60224.0,60223.0,0.58789844]
[1728604347494,0.01809455,60224.0,60223.0,0.46272922]
[1728604347703,0.01909455,60224.0,60223.0,0.46372922]
[1728604347898,0.01909455,60224.0,60223.0,0.58889844]
[1728604349204,0.002534,60224.0,60223.0,0.58789844]
[1728604349417,0.003534,60224.0,60223.0,0.58889844]
[1728604350094,0.003534,60224.0,60223.0,0.87920774]
[1728604350312,0.24974609,60237.0,60223.0,0.87920774]
[1728604350313,0.24974609,60237.0,60236.0,0.329812]
[1728604350528,0.24974609,60237.0,60236.0,0.45298122]
[1728604350529,0.26529408,60237.0,60236.0,0.45298122]
[1728604350744,0.27911552,60237.0,60236.0,0.45298122]
[1728604350971,0.02936943,60237.0,60236.0,0.45298122]
[1728604351195,0.02936943,60237.0,60236.0,0.45498122]
[1728604351414,0.01554799,60237.0,60236.0,0.45498122]
[1728604351633,0.01554799,60237.0,60236.0,0.58015044]
[1728604351854,0.01954799,60237.0,60236.0,0.58015044]
[1728604352077,0.01554799,60237.0,60236.0,0.58015044]
[1728604352309,0.24974609,60244.0,60240.0,0.002]
[1728604352525,0.24974609,60244.0,60243.0,0.44926322]
[1728604352742,0.01553535,60244.0,60243.0,0.44926322]
[1728604354115,0.14938,60249.0,60244.0,0.14939]
[1728604354339,0.01552128,60248.0,60247.0,0.12516922]
[1728604354553,0.16490328,60248.0,60247.0,0.12516922]
[1728604355655,0.17290328,60248.0,60247.0,0.12516922]
[1728604356100,0.17890328,60248.0,60247.0,0.12616922]
[1728604357394,0.163382,60248.0,60247.0,0.12616922]
[1728604357607,0.17889084,60248.0,60247.0,0.12616922]
[1728604358236,0.19272302,60248.0,60247.0,0.12616922]
[1728604359140,0.19272302,60248.0,60247.0,0.001]
[1728604359834,0.19435502,60248.0,60247.0,0.001]
[1728604360934,0.04496664,60248.0,60247.0,0.001]
[1728604361573,0.19434864,60248.0,60247.0,0.001]
[1728604364237,0.17884618,60248.0,60247.0,0.001]
[1728604364449,0.19434731,60248.0,60247.0,0.001]
[1728604365713,0.04496531,60248.0,60247.0,0.001]
[1728604366134,0.19434731,60248.0,60247.0,0.001]
[1728604366968,0.04496531,60248.0,60247.0,0.001]
[1728604367814,0.04496868,60248.0,60247.0,0.001]
[1728604371952,0.19435068,60248.0,60247.0,0.001]
[1728604374747,0.17884618,60248.0,60247.0,0.001]
[1728604374968,0.19437778,60248.0,60247.0,0.001]
[1728604377791,0.04499578,60248.0,60247.0,0.001]
[1728604378010,0.19437778,60248.0,60247.0,0.001]
[1728604383524,0.36368708,60248.0,60247.0,0.001]
[1728604384281,0.19437778,60248.0,60247.0,0.001]
[1728604385228,0.17884618,60248.0,60247.0,0.001]
[1728604386096,0.34815548,60248.0,60247.0,0.001]
[1728604391413,0.39782726,60248.0,60247.0,0.001]
[1728604392375,0.34815548,60248.0,60247.0,0.001]
[1728604392624,0.36372355,60248.0,60247.0,0.001]
[1728604393587,0.43823122,60248.0,60247.0,0.001]
[1728604395338,0.64691789,60248.0,60247.0,0.001]
[1728604397286,0.54757433,60248.0,60247.0,0.001]
[1728604398424,0.64722467,60248.0,60247.0,0.001]
[1728604398765,0.64729767,60248.0,60247.0,0.001]
[1728604399897,0.64729872,60248.0,60247.0,0.001]
[1728604400119,0.32860742,60248.0,60247.0,0.001]
[1728604400345,0.32860742,60248.0,60247.0,0.0762]
[1728604400566,0.32860742,60248.0,60247.0,0.225585]
[1728604401002,0.32860742,60248.0,60247.0,0.0762]
[1728604402911,0.22895749,60248.0,60247.0,0.0762]
[1728604403683,0.22893312,60248.0,60247.0,0.225585]
[1728604404108,0.22893312,60248.0,60247.0,0.0762]
[1728604405208,0.37831512,60248.0,60247.0,0.0762]
[1728604406057,0.22893312,60248.0,60247.0,0.0762]
[1728604406503,0.37831512,60248.0,60247.0,0.0762]
[1728604407454,0.22893312,60248.0,60247.0,0.0762]
[1728604408075,0.37831512,60248.0,60247.0,0.0762]
[1728604408285,0.37831093,60248.0,60247.0,0.0762]
[1728604408495,0.32856339,60248.0,60247.0,0.0762]
[1728604408705,0.47794539,60248.0,60247.0,0.0762]
[1728604409852,0.32856339,60248.0,60247.0,0.0762]
[1728604410152,0.22892893,60248.0,60247.0,0.0762]
[1728604410584,0.32856339,60248.0,60247.0,0.0762]
[1728604411745,0.47794539,60248.0,60247.0,0.0762]
[1728604413027,0.4779467,60248.0,60247.0,0.0762]
[1728604413669,0.3285647,60248.0,60247.0,0.0762]
[1728604413959,0.11976109,60248.0,60247.0,0.22890429]
[1728604414179,0.11976234,60248.0,60247.0,0.22890429]
[1728604414392,0.04503455,60248.0,60247.0,0.22890429]
[1728604415524,0.04531455,60248.0,60247.0,0.22890429]
[1728604420043,0.0951292,60248.0,60247.0,0.22890429]
[1728604420761,0.0954092,60248.0,60247.0,0.22890429]
[1728604422244,0.09540927,60248.0,60247.0,0.22890429]
[1728604423687,0.09512927,60248.0,60247.0,0.22890429]
[1728604424376,0.0795589,60248.0,60247.0,0.0762]
[1728604424588,0.09512534,60248.0,60247.0,0.0762]
[1728604425051,0.09512534,60248.0,60247.0,0.225585]
[1728604425444,0.09512534,60248.0,60247.0,0.0762]
[1728604427668,0.0795589,60248.0,60247.0,0.0762]
[1728604427868,0.09512605,60248.0,60247.0,0.0762]
[1728604428095,0.09512605,60248.0,60247.0,0.225585]
[1728604428412,0.09512605,60248.0,60247.0,0.0762]
[1728604428618,0.09539605,60248.0,60247.0,0.0762]
[1728604431221,0.24477805,60248.0,60247.0,0.0762]
[1728604431895,0.24477063,60248.0,60247.0,0.0762]
[1728604432382,0.54814183,60248.0,60247.0,0.001]
[1728604433086,0.54840183,60248.0,60247.0,0.001]
[1728604434020,0.64550183,60248.0,60247.0,0.001]
[1728604434679,0.64549785,60248.0,60247.0,0.001]
[1728604436355,0.64546386,60248.0,60247.0,0.001]
[1728604438312,0.77018649,60248.0,60247.0,0.001]
[1728604439083,0.74529081,60248.0,60247.0,0.001]
[1728604439295,0.64570803,60248.0,60247.0,0.001]
[1728604439495,0.74528646,60248.0,60247.0,0.001]
[1728604440908,0.64570803,60248.0,60247.0,0.001]
[1728604441349,0.74528346,60248.0,60247.0,0.001]
[1728604442507,0.32949216,60248.0,60247.0,0.12616922]
[1728604442735,0.12075877,60248.0,60247.0,0.12616922]
[1728604443445,0.27014077,60248.0,60247.0,0.12616922]
[1728604444933,0.25458343,60248.0,60247.0,0.12616922]
[1728604445163,0.27013634,60248.0,60247.0,0.12616922]
[1728604445367,0.19545909,60248.0,60247.0,0.12616922]
[1728604445809,0.27013634,60248.0,60247.0,0.12616922]
[1728604446376,0.19545909,60248.0,60247.0,0.12616922]
[1728604446800,0.12075195,60248.0,60247.0,0.12616922]
[1728604447005,0.09586135,60248.0,60247.0,0.12616922]
[1728604447189,0.12075195,60248.0,60247.0,0.12616922]
[1728604447410,0.12075157,60248.0,60247.0,0.12616922]
[1728604448370,0.12075276,60248.0,60247.0,0.12616922]
[1728604448792,0.27013476,60248.0,60247.0,0.12616922]
[1728604449005,0.27013565,60248.0,60247.0,0.12616922]
[1728604449224,0.12075365,60248.0,60247.0,0.12616922]
[1728604451108,0.09586058,60248.0,60247.0,0.27555422]
[1728604451819,0.09586137,60248.0,60247.0,0.27555422]
[1728604452121,0.09611137,60248.0,60247.0,0.27555422]
[1728604452559,0.04632907,60248.0,60247.0,0.27555422]
[1728604454126,0.04632907,60248.0,60247.0,0.40072344]
[1728604454353,0.09611066,60248.0,60247.0,0.48072344]
[1728604454571,0.04632907,60248.0,60247.0,0.35755422]
[1728604455003,0.03077418,60248.0,60247.0,0.35755422]
[1728604455206,0.04632989,60248.0,60247.0,0.35755422]
[1728604455877,0.03249771,60248.0,60247.0,0.35755422]
[1728604456082,0.04634905,60248.0,60247.0,0.35755422]
[1728604456290,0.04634905,60248.0,60247.0,0.35555422]
[1728604456699,0.04634905,60248.0,60247.0,0.35755422]
[1728604457762,0.04634905,60248.0,60247.0,0.35555422]
[1728604459325,0.09612612,60248.0,60247.0,0.35555422]
[1728604459596,0.09612663,60248.0,60247.0,0.35555422]
[1728604460334,0.04634956,60248.0,60247.0,0.57952344]
[1728604460812,0.03249822,60248.0,60247.0,0.57952344]
[1728604461547,0.02649109,60248.0,60247.0,0.57852344]
[1728604461760,0.02649109,60248.0,60247.0,0.57952344]
[1728604461988,0.01849109,60248.0,60247.0,0.57952344]
[1728604462222,0.01949109,60248.0,60247.0,0.57952344]
[1728604462458,0.01849109,60248.0,60247.0,0.57952344]
[1728604466720,0.01849109,60248.0,60247.0,0.329185]
[1728604466934,0.01849109,60248.0,60247.0,0.57952344]
[1728604467410,0.04334806,60248.0,60247.0,0.57952344]
[1728604468697,0.01849109,60248.0,60247.0,0.57952344]
[1728604471429,0.01847514,60248.0,60247.0,0.57952344]
[1728604472945,0.01847514,60248.0,60247.0,1.07952344]
[1728604473761,0.01847248,60248.0,60247.0,1.07952344]
[1728604474190,0.01847303,60248.0,60247.0,1.07952344]
[1728604474671,0.01847303,60248.0,60247.0,1.07852344]
[1728604474871,0.01847235,60248.0,60247.0,1.07852344]
[1728604475116,0.01947235,60248.0,60247.0,1.08552344]
[1728604475295,0.02047235,60248.0,60247.0,1.08552344]
[1728604475504,0.01947235,60248.0,60247.0,1.07852344]
[1728604475718,0.02047235,60248.0,60247.0,1.08552344]
[1728604476207,0.01947235,60248.0,60247.0,1.08552344]
[1728604476449,0.02047235,60248.0,60247.0,1.08552344]
[1728604478107,0.004942,60248.0,60247.0,1.08552344]
[1728604478316,0.001632,60250.0,60249.0,0.15638]
[1728604478519,0.24974609,60256.0,60255.0,0.236665]
[1728604478727,0.24974609,60256.0,60255.0,0.36515288]
[1728604478906,0.24974609,60256.0,60255.0,0.36183422]
[1728604479112,0.24974609,60264.0,60263.0,0.149345]
[1728604479309,0.24974609,60264.0,60263.0,0.40300188]
[1728604479310,0.27459585,60264.0,60263.0,0.40300188]
[1728604479520,0.03814532,60264.0,60263.0,0.39968344]
[1728604479940,0.02484976,60264.0,60263.0,0.39968344]
[1728604480168,0.03814604,60264.0,60263.0,0.39968344]
[1728604480361,0.04614604,60264.0,60263.0,0.39968344]
[1728604480579,0.04614604,60264.0,60263.0,1.03185266]
[1728604480786,0.04614604,60264.0,60263.0,1.11495266]
[1728604481031,0.000817,60270.0,60264.0,0.156342]
[1728604481246,0.000817,60270.0,60264.0,0.24275977]
[1728604482348,0.000817,60270.0,60264.0,0.41206907]
[1728604482554,0.000817,60270.0,60264.0,0.4087513]
[1728604482983,0.00118807,60265.0,60264.0,0.4107513]
[1728604483392,0.00118807,60265.0,60264.0,0.4087513]
[1728604483393,0.00018807,60265.0,60264.0,0.4087513]
[1728604483599,0.00118807,60265.0,60264.0,0.4107513]
[1728604484876,0.00118807,60265.0,60264.0,0.4197513]
[1728604485286,0.00118807,60265.0,60264.0,0.4177513]
[1728604485498,0.00018807,60265.0,60264.0,0.4087513]
[1728604485702,0.00118807,60265.0,60264.0,0.4177513]
[1728604485900,0.00118807,60265.0,60264.0,0.4267513]
[1728604486332,0.00118807,60265.0,60264.0,0.4247513]
[1728604486959,0.00118807,60265.0,60264.0,0.4267513]
[1728604488739,0.00118807,60265.0,60264.0,0.55192052]
[1728604488952,0.00118807,60265.0,60264.0,0.4267513]
[1728604489835,0.000817,60270.0,60269.0,0.007]
[1728604490054,0.000817,60270.0,60269.0,0.58818593]
[1728604490372,0.24974609,60278.0,60277.0,0.005]
[1728604490522,0.24974609,60278.0,60277.0,0.3656967]
[1728604490733,0.24974609,60278.0,60277.0,0.23721]
[1728604490979,0.000816,60280.0,60279.0,0.005]
[1728604491203,0.000816,60280.0,60279.0,0.28279134]
[1728604491429,0.01630668,60280.0,60279.0,0.40796056]